bitfinex-derivatives/quotes_BNBF0:USTF0_20250305
["timestamp","ask_amount","ask_price","bid_price","bid_amount"]
[1741216535037,2.17351172,597.79,596.88,0.33507572]
[1741216535238,1.54643268,597.85,596.88,0.33507572]
[1741216535239,0.96713597,597.78,596.88,0.33507572]
[1741216535438,0.2913426,597.82,596.88,0.33507572]
[1741216535639,0.96713597,597.83,596.88,0.33507572]
[1741216535842,1.151,597.86,596.88,0.33507572]
[1741216535843,1.20637575,597.82,596.88,0.33507572]
[1741216536236,0.96713597,597.83,596.88,0.33507572]
[1741216536433,1.151,597.86,596.88,0.33507572]
[1741216539247,2.17351172,597.85,596.88,0.33507572]
[1741216540143,0.96713597,597.84,596.88,0.33507572]
[1741216540337,2.11813597,597.86,596.88,0.33507572]
[1741216540547,1.151,597.86,596.88,0.33507572]
[1741216542346,2.11813597,597.86,596.88,0.33507572]
[1741216542540,3.66255662,597.86,596.88,0.33507572]
[1741216542745,0.96713597,597.85,596.88,0.33507572]
[1741216543144,2.35737575,597.86,596.88,0.33507572]
[1741216543346,0.96713597,597.85,596.88,0.33507572]
[1741216543545,1.151,597.86,596.88,0.33507572]
[1741216543741,2.11813597,597.86,596.88,0.33507572]
[1741216543946,3.32451172,597.86,596.88,0.33507572]
[1741216544143,2.51155662,597.85,596.88,0.33507572]
[1741216544347,0.96713597,597.85,596.88,0.33507572]
[1741216544748,1.20637575,597.84,596.88,0.33507572]
[1741216545445,2.17351172,597.85,596.88,0.33507572]
[1741216546048,0.96713597,597.85,596.88,0.33507572]
[1741216546343,1.151,597.86,596.88,0.33507572]
[1741216546344,1.151,597.86,597.02,1.24801916]
[1741216546542,0.29130968,597.84,597.02,1.24801916]
[1741216547448,1.25844565,597.84,597.02,1.24801916]
[1741216548049,2.4648214,597.84,597.04,1.24801916]
[1741216548248,0.96713597,597.83,597.04,1.24801916]
[1741216548443,1.20637575,597.82,597.04,1.24801916]
[1741216548643,2.17351172,597.82,597.04,1.24801916]
[1741216548949,0.96713597,597.81,597.04,1.24801916]
[1741216549145,1.20637575,597.82,597.04,1.24801916]
[1741216549353,2.17351172,597.83,597.04,1.24801916]
[1741216549551,0.96713597,597.82,597.04,1.24801916]
[1741216549744,1.49766714,597.83,597.04,1.24801916]
[1741216550046,1.20637575,597.82,597.04,1.24801916]
[1741216550250,3.71793237,597.82,596.93,0.29129139]
[1741216550454,3.71793237,597.81,596.93,0.29129139]
[1741216550751,2.51155662,597.8,596.93,0.29129139]
[1741216550951,0.96713597,597.8,596.93,0.29129139]
[1741216551151,1.20637575,597.81,596.93,0.29129139]
[1741216552352,1.20637575,597.81,596.88,0.33507572]
[1741216552353,2.17351172,597.81,596.88,0.33507572]
[1741216552548,0.96713597,597.8,596.93,0.2913109]
[1741216552753,0.96713597,597.79,596.93,0.2913109]
[1741216553264,2.17351172,597.79,596.93,0.2913109]
[1741216553448,0.96713597,597.78,596.93,0.2913109]
[1741216553654,1.20637575,597.79,596.93,0.2913109]
[1741216554057,1.20637575,597.78,596.93,0.2913109]
[1741216554552,1.20637575,597.78,596.94,0.33504204]
[1741216554760,1.20637575,597.77,596.94,0.33504204]
[1741216555358,2.17351172,597.78,596.94,0.33504204]
[1741216555558,0.96713597,597.77,596.94,0.33504204]
[1741216555962,2.17351172,597.77,596.94,0.33504204]
[1741216556161,0.96713597,597.76,596.94,0.33504204]
[1741216556360,1.20637575,597.77,596.94,0.33504204]
[1741216556567,1.20637575,597.75,596.94,0.33504204]
[1741216557462,1.20637575,597.74,596.94,0.33504204]
[1741216557863,0.96713597,597.75,596.94,0.33504204]
[1741216558061,1.20637575,597.76,596.94,0.33504204]
[1741216558260,1.20637575,597.75,596.94,0.33504204]
[1741216558663,2.17351172,597.75,596.94,0.33504204]
[1741216558863,0.96713597,597.74,596.94,0.33504204]
[1741216559466,2.17351172,597.8,596.94,0.33504204]
[1741216559758,2.17351172,597.79,596.94,0.33504204]
[1741216560560,1.20637575,597.79,596.94,0.33504204]
[1741216560762,0.96737161,597.78,596.94,0.33504204]
[1741216561668,1.20637575,597.79,596.94,0.33504204]
[1741216562065,1.20637575,597.78,596.94,0.33504204]
[1741216562466,2.17374736,597.81,596.94,0.33504204]
[1741216562666,0.96737161,597.8,596.94,0.33504204]
[1741216562873,0.96737161,597.79,596.94,0.33504204]
[1741216563369,2.17374736,597.78,596.94,0.33504204]
[1741216563670,0.29129139,597.93,596.94,0.33504204]
[1741216563671,2.17374736,597.77,596.94,0.33504204]
[1741216563863,0.96737161,597.76,596.94,0.33504204]
[1741216564063,2.17374736,597.76,596.94,0.33504204]
[1741216564367,0.96737161,597.75,596.94,0.33504204]
[1741216564565,2.17374736,597.75,596.94,0.33504204]
[1741216564866,0.96737161,597.74,596.94,0.33504204]
[1741216565067,1.81037161,597.74,596.94,0.33504204]
[1741216565365,0.843,597.74,596.94,0.33504204]
[1741216569069,0.843,597.74,597.21,1.24801916]
[1741216571572,0.843,597.74,597.04,0.29122314]
[1741216571573,0.843,597.74,597.18,1.24801916]
[1741216573868,0.843,597.74,597.14,1.24801916]
[1741216575967,0.843,597.74,597.1,1.53924595]
[1741216576372,0.843,597.74,597.1,1.24801916]
[1741216576572,0.843,597.74,597.1,1.53926789]
[1741216579074,0.843,597.74,597.1,1.24801916]
[1741216580578,0.843,597.74,597.09,1.24801916]
[1741216582880,0.843,597.74,597.02,1.24801916]
[1741216582881,0.843,597.74,597.12,1.24801916]
[1741216585879,0.843,597.74,597.13,0.17]
[1741216586778,0.843,597.74,597.14,1.24801916]
[1741216588179,0.843,597.74,597.15,0.33492422]
[1741216588579,0.843,597.74,597.17,1.24801916]
[1741216590081,0.843,597.74,597.21,1.24801916]
[1741216592887,0.843,597.74,597.16,0.29121583]
[1741216594280,0.843,597.74,597.15,0.33492422]
[1741216594487,0.843,597.74,597.16,0.29122314]
[1741216597284,0.843,597.74,597.15,0.33492422]
[1741216597586,0.843,597.74,597.16,0.29124264]
[1741216600186,0.843,597.74,597.15,0.33492422]
[1741216600787,0.843,597.74,597.16,0.29125726]
[1741216603190,0.843,597.74,597.15,0.33492422]
[1741216603588,0.843,597.74,597.16,0.29125726]
[1741216605486,0.843,597.74,597.18,1.24801916]
[1741216608095,0.843,597.74,597.18,1.41801916]
[1741216608897,0.843,597.74,597.18,0.17]
[1741216611507,0.843,597.74,597.21,1.24801916]
[1741216612107,2.51492281,597.91,597.21,1.24801916]
[1741216612301,2.17365375,597.9,597.21,1.24801916]
[1741216612504,0.967278,597.89,597.21,1.24801916]
[1741216612796,3.72129856,597.94,597.21,1.24801916]
[1741216613101,2.51492281,597.93,597.21,1.24801916]
[1741216613301,2.17365375,597.92,597.21,1.24801916]
[1741216613500,2.17365375,597.92,597.18,0.17]
[1741216613501,0.967278,597.91,597.18,0.17]
[1741216613701,0.96757952,597.91,597.18,0.17]
[1741216613903,0.96757952,597.9,597.18,0.17]
[1741216614296,2.17395527,597.9,597.18,0.17]
[1741216614593,0.96757952,597.89,597.18,0.17]
[1741216614798,1.20637575,597.9,597.18,0.17]
[1741216615205,0.793,597.89,597.18,0.17]
[1741216618907,1.76070692,597.89,597.18,0.17]
[1741216619306,0.793,597.89,597.18,0.17]
[1741216619708,0.793,597.89,597.18,0.50490739]
[1741216620003,0.793,597.89,597.19,0.33490179]
[1741216621409,0.793,597.89,597.25,1.24801916]
[1741216623410,0.96827553,597.88,597.25,1.24801916]
[1741216623602,0.793,597.89,597.25,1.24801916]
[1741216624111,0.793,597.89,597.28,1.24801916]
[1741216625411,0.96866107,597.88,597.28,1.24801916]
[1741216625611,0.96866107,597.87,597.28,1.24801916]
[1741216625912,0.793,597.89,597.28,1.24801916]
[1741216626112,2.1766671,597.88,597.28,1.24801916]
[1741216626406,0.96866493,597.87,597.28,1.24801916]
[1741216626711,0.96866493,597.86,597.28,1.24801916]
[1741216626906,0.96866493,597.86,597.21,1.24801916]
[1741216626907,2.1766671,597.85,597.21,1.24801916]
[1741216627110,0.96866493,597.84,597.21,1.24801916]
[1741216627413,2.1766671,597.83,597.21,1.24801916]
[1741216627612,0.96866493,597.82,597.21,1.24801916]
[1741216627810,0.96866493,597.81,597.21,1.24801916]
[1741216628010,0.96866493,597.8,597.21,1.24801916]
[1741216628310,0.96866493,597.79,597.21,1.24801916]
[1741216628512,0.96866493,597.8,597.21,1.24801916]
[1741216628711,0.96866493,597.79,597.21,1.24801916]
[1741216629211,0.96866493,597.79,597.22,0.17]
[1741216629412,0.96866493,597.79,597.23,1.24801916]
[1741216629607,1.20800217,597.8,597.23,1.24801916]
[1741216629608,0.96881723,597.78,597.23,1.24801916]
[1741216629913,0.96881723,597.79,597.23,1.24801916]
[1741216630114,2.1768194,597.78,597.23,1.24801916]
[1741216630313,0.96881723,597.77,597.23,1.24801916]
[1741216630517,1.20800217,597.78,597.23,1.24801916]
[1741216630811,1.20800217,597.77,597.22,0.17]
[1741216631114,2.1768194,597.82,597.22,0.17]
[1741216631411,0.96881723,597.81,597.22,0.17]
[1741216631709,2.1768194,597.8,597.22,0.17]
[1741216631914,0.96881723,597.79,597.22,0.17]
[1741216632113,0.96881723,597.78,597.22,0.17]
[1741216632413,1.20800217,597.78,597.22,0.17]
[1741216632610,0.96881723,597.77,597.22,0.17]
[1741216633011,1.20800217,597.76,597.22,0.17]
[1741216633616,3.02084197,597.93,597.22,0.17]
[1741216633810,2.51892822,597.92,597.22,0.17]
[1741216634007,0.50191375,597.93,597.22,0.17]
[1741216634008,3.72693039,597.91,597.22,0.17]
[1741216634313,3.02084197,597.9,597.22,0.17]
[1741216634516,2.1768194,597.89,597.22,0.17]
[1741216634819,0.96881723,597.88,597.22,0.17]
[1741216635014,0.96881723,597.87,597.22,0.17]
[1741216635207,0.96881723,597.86,597.22,0.17]
[1741216635412,2.1768194,597.85,597.22,0.17]
[1741216635714,0.96881723,597.84,597.22,0.17]
[1741216635916,0.96881723,597.83,597.22,0.17]
[1741216636112,0.96881723,597.82,597.22,0.17]
[1741216636415,2.1768194,597.81,597.22,0.17]
[1741216636616,0.96881723,597.8,597.22,0.17]
[1741216636809,0.96881723,597.79,597.22,0.17]
[1741216637012,0.96881723,597.78,597.22,0.17]
[1741216637212,1.20800217,597.78,597.22,0.17]
[1741216637710,1.20800217,597.77,597.22,0.17]
[1741216638012,2.17684238,597.77,597.22,0.17]
[1741216638212,0.96884021,597.76,597.22,0.17]
[1741216638412,1.20800217,597.77,597.22,0.17]
[1741216638813,0.96884021,597.8,597.22,0.17]
[1741216639009,0.96884021,597.79,597.22,0.17]
[1741216639213,0.96884021,597.8,597.22,0.17]
[1741216639411,1.20800217,597.78,597.22,0.17]
[1741216639815,2.17684238,597.82,597.22,0.17]
[1741216640016,0.96884021,597.81,597.22,0.17]
[1741216640219,0.96884021,597.8,597.22,0.17]
[1741216640412,0.96884021,597.79,597.22,0.17]
[1741216640612,0.96884021,597.8,597.22,0.17]
[1741216640815,0.96884021,597.79,597.22,0.17]
[1741216641014,1.20800217,597.79,597.22,0.17]
[1741216641214,2.17684238,597.79,597.22,0.17]
[1741216641415,0.96884021,597.78,597.22,0.17]
[1741216641610,1.2087424,597.78,597.22,0.17]
[1741216642212,0.96884021,597.81,597.22,0.17]
[1741216642213,0.96884021,597.8,597.22,0.17]
[1741216642423,0.96884021,597.79,597.22,0.17]
[1741216642614,0.96884021,597.78,597.22,0.17]
[1741216642816,0.96884021,597.8,597.22,0.17]
[1741216643017,0.96884021,597.79,597.22,0.17]
[1741216643217,0.96884021,597.78,597.22,0.17]
[1741216643522,1.067,597.85,597.22,0.17]
[1741216643523,2.17756076,597.79,597.22,0.17]
[1741216643718,0.96881836,597.78,597.22,0.17]
[1741216644319,2.17756076,597.78,597.19,0.62615539]
[1741216644519,0.96881836,597.77,597.19,0.62615539]
[1741216644920,2.17756076,597.77,597.19,0.62615539]
[1741216645117,0.96881836,597.76,597.19,0.62615539]
[1741216645425,0.96881836,597.81,597.19,0.62615539]
[1741216645613,2.17756076,597.8,597.19,0.62615539]
[1741216645823,0.96881836,597.79,597.19,0.62615539]
[1741216646120,2.17756076,597.78,597.19,0.62615539]
[1741216646319,0.96881836,597.77,597.19,0.62615539]
[1741216646518,2.17756076,597.76,597.19,0.62615539]
[1741216646820,0.96881836,597.75,597.19,0.62615539]
[1741216647421,2.51889067,597.82,597.2,0.17]
[1741216647622,0.96881836,597.81,597.2,0.17]
[1741216647824,0.96881836,597.8,597.2,0.17]
[1741216648121,0.96881836,597.79,597.2,0.17]
[1741216648418,2.17756076,597.78,597.2,0.17]
[1741216648721,0.96881836,597.77,597.2,0.17]
[1741216648920,0.96881836,597.76,597.2,0.17]
[1741216649120,0.96881836,597.75,597.2,0.17]
[1741216649313,1.2087424,597.76,597.2,0.17]
[1741216649521,2.17756076,597.83,597.2,0.17]
[1741216649719,0.96881836,597.82,597.2,0.17]
[1741216649915,0.96881836,597.81,597.2,0.17]
[1741216650125,2.17773878,597.8,597.2,0.17]
[1741216650320,0.96881836,597.79,597.2,0.17]
[1741216650517,0.96881836,597.78,597.2,0.17]
[1741216650720,0.96881836,597.77,597.2,0.17]
[1741216650920,0.96881836,597.76,597.2,0.17]
[1741216651127,0.96881836,597.75,597.2,0.17]
[1741216651423,0.96916583,597.74,597.2,0.17]
[1741216652121,1.067,597.85,597.2,0.17]
[1741216652122,2.17808625,597.73,597.2,0.17]
[1741216652321,1.20892042,597.73,597.2,0.17]
[1741216652625,2.17812265,597.82,597.2,0.17]
[1741216652923,2.17812265,597.81,597.2,0.17]
[1741216653122,0.96920223,597.8,597.2,0.17]
[1741216653323,0.96920223,597.79,597.2,0.17]
[1741216653618,2.17812265,597.78,597.2,0.17]
[1741216653822,0.96920223,597.77,597.2,0.17]
[1741216654020,0.96920223,597.76,597.2,0.17]
[1741216654219,2.17812265,597.75,597.2,0.17]
[1741216654418,0.96920223,597.74,597.2,0.17]
[1741216655024,1.20892042,597.73,597.2,0.17]
[1741216655826,0.96925551,597.81,597.2,0.17]
[1741216656124,1.20892042,597.82,597.2,0.17]
[1741216656125,0.96925551,597.8,597.2,0.17]
[1741216656319,0.96925551,597.79,597.2,0.17]
[1741216656525,0.96925551,597.78,597.2,0.17]
[1741216656726,0.96925551,597.77,597.2,0.17]
[1741216656926,0.96925551,597.76,597.2,0.17]
[1741216657128,0.96925551,597.75,597.2,0.17]
[1741216657328,1.20892042,597.78,597.2,0.17]
[1741216657329,0.96925551,597.74,597.2,0.17]
[1741216657522,1.20892042,597.74,597.2,0.17]
[1741216657920,0.96925551,597.76,597.2,0.17]
[1741216657921,0.96925551,597.75,597.2,0.17]
[1741216658529,2.17817593,597.75,597.2,0.17]
[1741216658729,0.96925551,597.74,597.2,0.17]
[1741216659124,2.17817593,597.83,597.2,0.17]
[1741216659330,0.96925551,597.82,597.2,0.17]
[1741216659531,0.96925551,597.81,597.2,0.17]
[1741216659732,0.96925551,597.8,597.2,0.17]
[1741216659926,0.96925551,597.79,597.2,0.17]
[1741216660124,1.20892042,597.81,597.2,0.17]
[1741216660125,0.96925551,597.78,597.2,0.17]
[1741216660325,0.96925551,597.8,597.2,0.17]
[1741216660626,2.17817593,597.8,597.2,0.17]
[1741216660833,1.20892042,597.8,597.2,0.17]
[1741216661329,1.067,597.85,597.2,0.17]
[1741216663628,1.067,597.85,597.2,1.4195496]
[1741216664029,1.067,597.85,597.21,0.33489057]
[1741216671734,1.067,597.85,597.24,1.2495496]
[1741216673740,1.067,597.85,597.22,0.29117928]
[1741216675345,1.067,597.85,597.21,0.33489057]
[1741216676534,1.067,597.85,597.22,0.29120852]
[1741216676737,1.067,597.85,597.22,0.46120852]
[1741216678343,1.067,597.85,597.22,0.17]
[1741216679541,1.067,597.85,597.22,0.4612207]
[1741216681340,1.067,597.85,597.22,0.17]
[1741216682441,1.067,597.85,597.22,0.4612207]
[1741216684244,1.067,597.85,597.22,0.17]
[1741216685442,1.067,597.85,597.22,0.46123167]
[1741216687248,1.067,597.85,597.22,0.17]
[1741216688442,1.067,597.85,597.22,0.46124264]
[1741216689646,0.96729468,598.02,597.22,0.46124264]
[1741216689945,0.96729468,598.01,597.22,0.46124264]
[1741216690147,2.1762151,598.0,597.22,0.46124264]
[1741216690342,0.96729468,597.99,597.22,0.17]
[1741216690542,2.1762151,597.98,597.22,0.17]
[1741216690741,0.96729468,597.97,597.22,0.17]
[1741216690947,0.96729468,597.96,597.22,0.17]
[1741216691146,0.96729468,597.95,597.22,0.17]
[1741216691350,2.1762151,597.94,597.22,0.17]
[1741216691553,0.96729468,597.93,597.22,0.46120973]
[1741216691748,2.1762151,597.93,597.22,0.46120973]
[1741216691948,0.96729468,597.92,597.22,0.46120973]
[1741216692142,1.20892042,597.92,597.22,0.46120973]
[1741216692547,4.22573476,598.05,597.22,0.46120973]
[1741216692753,0.716,597.91,597.22,0.46120973]
[1741216693351,0.716,597.91,597.22,0.17]
[1741216693655,0.96729468,597.9,597.22,0.17]
[1741216693850,0.716,597.91,597.22,0.17]
[1741216694051,1.20892042,597.9,597.22,0.17]
[1741216694254,2.1762151,597.9,597.22,0.17]
[1741216694450,2.1762151,597.9,597.22,0.46122801]
[1741216694652,1.20892042,597.9,597.22,0.46122801]
[1741216694853,0.716,597.91,597.22,0.46122801]
[1741216696355,0.716,597.91,597.22,0.17]
[1741216696959,0.96742944,597.9,597.22,0.17]
[1741216697158,0.96742944,597.89,597.22,0.17]
[1741216697359,0.96742944,597.9,597.22,0.17]
[1741216697566,0.96742944,597.89,597.22,0.46123045]
[1741216697758,0.716,597.91,597.22,0.46123045]
[1741216697759,2.17442557,597.9,597.22,0.46123045]
[1741216697957,2.17442557,597.89,597.22,0.46123045]
[1741216698158,0.96742944,597.88,597.22,0.46123045]
[1741216698763,0.96742944,597.89,597.22,0.46123045]
[1741216699166,2.17442557,597.89,597.22,0.46123045]
[1741216699461,0.96742944,597.88,597.22,0.17]
[1741216699664,0.96742944,597.87,597.22,0.17]
[1741216699962,0.96742944,597.86,597.22,0.17]
[1741216700256,0.96742944,597.87,597.22,0.17]
[1741216700466,0.96742944,597.86,597.22,0.17]
[1741216700763,1.20699613,597.87,597.22,0.17]
[1741216700764,0.96742944,597.85,597.22,0.17]
[1741216700969,0.96742944,597.84,597.22,0.17]
[1741216701162,0.96742944,597.83,597.22,0.17]
[1741216701357,0.96742944,597.82,597.22,0.17]
[1741216701564,0.96742944,597.81,597.22,0.17]
[1741216701760,0.96742944,597.8,597.22,0.17]
[1741216702063,1.20699613,597.79,597.22,0.17]
[1741216702761,0.96742944,597.79,597.22,0.17]
[1741216702959,0.96742944,597.8,597.22,0.17]
[1741216703362,1.20699613,597.81,597.22,0.17]
[1741216703564,1.20699613,597.8,597.22,0.17]
[1741216704061,0.716,597.91,597.22,0.17]
[1741216704062,2.17442557,597.87,597.22,0.17]
[1741216704261,0.96742944,597.86,597.22,0.17]
[1741216704467,0.96742944,597.85,597.22,0.17]
[1741216704662,0.96742944,597.85,597.21,0.33489057]
[1741216704663,0.96742944,597.84,597.21,0.33489057]
[1741216704858,0.96742944,597.83,597.21,0.33489057]
[1741216705056,0.96742944,597.82,597.21,0.33489057]
[1741216705256,1.20699613,597.81,597.21,0.33489057]
[1741216705668,1.20699613,597.82,597.21,0.33489057]
[1741216706261,0.96742944,597.87,597.21,0.33489057]
[1741216706463,0.96742944,597.86,597.21,0.33489057]
[1741216706665,0.96742944,597.85,597.21,0.33489057]
[1741216706960,0.96742944,597.84,597.21,0.33489057]
[1741216707165,0.96742944,597.83,597.21,0.33489057]
[1741216707366,1.20699613,597.84,597.21,0.33489057]
[1741216707558,0.96742944,597.83,597.21,0.33489057]
[1741216707758,1.20699613,597.82,597.22,0.17]
[1741216709765,2.17442557,597.81,597.22,0.17]
[1741216709965,0.96742944,597.8,597.22,0.17]
[1741216710165,1.20699613,597.81,597.22,0.17]
[1741216710367,2.17442557,597.89,597.22,0.17]
[1741216710565,0.96742944,597.88,597.22,0.17]
[1741216710762,0.96742944,597.87,597.22,0.17]
[1741216710965,0.96742944,597.86,597.22,0.17]
[1741216711167,0.96742944,597.85,597.22,0.17]
[1741216711365,0.96742944,597.84,597.22,0.17]
[1741216711566,0.96742944,597.83,597.22,0.17]
[1741216711765,0.96742944,597.82,597.22,0.17]
[1741216712469,1.20699613,597.86,597.22,0.17]
[1741216712470,0.96742944,597.85,597.22,0.17]
[1741216712665,0.96742944,597.84,597.22,0.17]
[1741216712970,2.17391159,597.83,597.22,0.17]
[1741216713171,0.96691546,597.82,597.22,0.17]
[1741216713668,0.96691546,597.89,597.22,0.17]
[1741216713863,0.96691546,597.88,597.22,0.17]
[1741216714068,0.96691546,597.87,597.22,0.17]
[1741216714265,0.96691546,597.86,597.22,0.17]
[1741216714471,0.96691546,597.85,597.22,0.17]
[1741216714765,0.96691546,597.84,597.22,0.17]
[1741216715071,0.96691546,597.83,597.22,0.17]
[1741216715266,2.17391159,597.85,597.22,0.17]
[1741216715468,0.96691546,597.84,597.22,0.17]
[1741216715669,0.96691546,597.83,597.22,0.17]
[1741216715869,0.96691546,597.84,597.22,0.17]
[1741216716170,0.96691546,597.85,597.22,0.17]
[1741216716470,0.96691546,597.84,597.22,0.17]
[1741216717366,0.96691546,597.89,597.22,0.17]
[1741216717568,0.96691546,597.88,597.22,0.17]
[1741216717769,0.96691546,597.87,597.22,0.17]
[1741216717966,0.96691546,597.86,597.22,0.17]
[1741216718269,0.96691546,597.85,597.22,0.17]
[1741216718470,0.96691546,597.84,597.22,0.17]
[1741216718672,2.17391159,597.86,597.22,0.17]
[1741216718869,0.96691546,597.85,597.22,0.17]
[1741216719069,0.96691546,597.84,597.22,0.17]
[1741216720167,0.96691546,597.87,597.22,0.17]
[1741216720374,0.96691546,597.86,597.22,0.17]
[1741216720573,0.96691546,597.85,597.22,0.17]
[1741216720776,0.96691546,597.86,597.22,0.17]
[1741216720975,0.96691546,597.85,597.22,0.17]
[1741216721675,1.20699613,597.86,597.22,0.17]
[1741216721867,0.96691546,597.85,597.22,0.17]
[1741216722072,2.17391159,597.89,597.22,0.17]
[1741216722272,0.96691546,597.88,597.22,0.17]
[1741216722467,2.17391159,597.87,597.22,0.17]
[1741216722678,0.96691546,597.86,597.22,0.17]
[1741216723679,0.96691546,597.88,597.22,0.17]
[1741216723975,0.96691546,597.87,597.22,0.17]
[1741216724176,0.96691546,597.86,597.22,0.17]
[1741216724478,2.17391159,597.87,597.22,0.17]
[1741216724669,0.96691546,597.86,597.22,0.17]
[1741216724870,0.96691546,597.85,597.22,0.17]
[1741216725073,2.17391159,597.86,597.22,0.17]
[1741216725276,0.96691546,597.85,597.22,0.17]
[1741216725975,0.96691546,597.89,597.22,0.17]
[1741216726176,0.96691546,597.88,597.22,0.17]
[1741216726378,0.96691546,597.87,597.22,0.17]
[1741216726578,0.96691546,597.86,597.22,0.17]
[1741216726773,0.96691546,597.87,597.22,0.17]
[1741216726978,0.96691546,597.86,597.22,0.17]
[1741216727175,0.96691546,597.85,597.22,0.17]
[1741216727373,0.96691546,597.84,597.22,0.17]
[1741216727677,0.96691546,597.85,597.22,0.17]
[1741216727981,2.17391159,597.85,597.22,0.17]
[1741216728278,0.96691546,597.84,597.22,0.17]
[1741216728878,3.01596751,597.88,597.21,0.33489057]
[1741216729074,2.5139802,597.87,597.21,0.33489057]
[1741216729276,2.17391159,597.86,597.21,0.33489057]
[1741216729481,0.96691546,597.85,597.21,0.33489057]
[1741216729674,0.96691546,597.84,597.21,0.33489057]
[1741216729980,0.96691546,597.83,597.21,0.33489057]
[1741216730374,0.96691546,597.82,597.21,0.33489057]
[1741216731375,0.96691546,597.81,597.21,0.33489057]
[1741216731575,3.01596392,597.89,597.21,0.33489057]
[1741216731880,0.96691546,597.88,597.21,0.33489057]
[1741216732077,0.96691546,597.87,597.22,0.17]
[1741216732281,0.96691546,597.86,597.22,0.17]
[1741216732581,2.17391159,597.85,597.22,0.17]
[1741216732782,0.96691546,597.84,597.22,0.17]
[1741216733076,0.96691546,597.83,597.22,0.17]
[1741216733281,0.96691546,597.82,597.22,0.17]
[1741216733482,0.96691546,597.81,597.22,0.17]
[1741216733682,0.96691546,597.8,597.22,0.17]
[1741216733878,0.96691546,597.79,597.22,0.17]
[1741216734082,0.96691546,597.78,597.22,0.17]
[1741216734278,0.96691546,597.77,597.22,0.17]
[1741216734683,2.17391159,597.77,597.22,0.17]
[1741216734882,0.96691546,597.76,597.22,0.17]
[1741216735080,1.20699613,597.77,597.22,0.17]
[1741216735578,3.01596392,597.85,597.22,0.17]
[1741216735779,0.96691546,597.84,597.22,0.17]
[1741216735981,0.96691546,597.83,597.22,0.17]
[1741216736181,2.17391159,597.82,597.22,0.17]
[1741216736381,0.96691546,597.81,597.22,0.17]
[1741216736581,2.17391159,597.8,597.22,0.17]
[1741216736780,0.96691546,597.79,597.22,0.17]
[1741216736985,0.96691546,597.78,597.22,0.17]
[1741216737183,2.17391159,597.79,597.22,0.17]
[1741216737384,0.96691546,597.78,597.22,0.17]
[1741216737880,2.5139802,597.8,597.22,0.17]
[1741216738080,2.17391159,597.79,597.22,0.17]
[1741216738280,0.96691546,597.78,597.22,0.17]
[1741216738482,0.96691546,597.77,597.22,0.17]
[1741216738687,2.17391159,597.78,597.22,0.17]
[1741216738885,0.96691546,597.77,597.22,0.17]
[1741216739280,0.96691546,597.76,597.22,0.17]
[1741216740182,0.96691546,597.81,597.22,0.17]
[1741216740383,2.17391159,597.8,597.22,0.17]
[1741216740587,0.96691546,597.79,597.22,0.17]
[1741216740790,0.96691546,597.78,597.22,0.17]
[1741216740987,0.96691546,597.77,597.22,0.17]
[1741216741194,0.96691546,597.76,597.22,0.17]
[1741216741788,0.96691546,597.75,597.22,0.17]
[1741216741992,0.96691546,597.79,597.22,0.17]
[1741216742192,1.20699613,597.8,597.22,0.17]
[1741216742193,0.96691546,597.78,597.22,0.17]
[1741216742389,0.96691546,597.77,597.22,0.17]
[1741216742588,0.96691546,597.76,597.22,0.17]
[1741216742795,2.17391159,597.75,597.22,0.17]
[1741216742995,0.96691546,597.74,597.22,0.17]
[1741216743190,2.17391159,597.73,597.22,0.17]
[1741216743392,0.96691546,597.72,597.22,0.17]
[1741216743590,0.96691546,597.71,597.22,0.17]
[1741216743796,0.96691546,597.7,597.22,0.17]
[1741216743999,2.17391159,597.69,597.22,0.17]
[1741216744291,0.96691546,597.68,597.22,0.17]
[1741216744795,2.5139802,597.73,597.22,0.17]
[1741216744998,0.96691546,597.72,597.22,0.17]